Cogmind - Beta 16.1 @@@ ROGUE MODE // 2026.04.26 @ 06:36:51 Player: AlmondRoll Result: Self-destructed Performance ------------- Evolutions (7) 3500 Regions Visited (13) 2600 Robots Destroyed (83) 415 Value Destroyed (2777) 2777 Prototype IDs (24) 480 Alien Tech Used (2) 400 Bonus (1549) 1549 TOTAL SCORE: 11721 Bonus ------- Follower Combat Kills 449 Registered with UFD 300 Met Optimus in HQ 500 Met Zhirov 300 Cogmind --------- Core Integrity 1187/1300 Matter 275/300 Energy 408/475 System Corruption 6% Temperature Warm (106) Movement Walking (120) Location -3/Research Parts ------- > --- POWER (3) -------- Light Neutrino Core Antimatter Reactor Light Particle Reactor > --- PROPULSION (6) --- Improved Titanium Leg Armored Leg (fused) Myomer Leg Myomer Leg Advanced Myomer Leg Biometal Leg > --- UTILITY (10) ----- Advanced Signal Interpreter Improved Phase Shifter Improved Shield Generator Advanced Hacking Suite Makeshift System Shield > --- WEAPON (3) ------- HERF Cannon Phasing Sabre Lance > --- INVENTORY (5) ---- Light Humpback Large Botcube Peak State ------------ > --- POWER ------------ Light Neutrino Core Antimatter Reactor Light Particle Reactor > --- PROPULSION ------- Improved Titanium Leg Armored Leg Myomer Leg Myomer Leg Advanced Myomer Leg Biometal Leg > --- UTILITY ---------- Light Humpback Advanced Sensor Array Advanced Signal Interpreter Makeshift Terrain Scanner Advanced Reaction Control System Enhanced Scrap Shield Advanced Hacking Suite Makeshift System Shield > --- WEAPON ----------- Nova Cannon Phasing Sabre Lance > --- INVENTORY -------- Light Particle Reactor Advanced Power Amplifier Advanced Cryofiber Web Advanced Cooling System Light Humpback Advanced Energy Well Improved Matter Compressor Advanced Melee Analysis Suite Advanced Melee Analysis Suite Improved Weapon Cycler Microactuators Improved Reaction Control System Improved Phase Shifter Hardened Heavy Armor Plating Improved Shield Generator Dimensional Node Initializer Transdimensional Reconstructor HERF Cannon Proton Missile Launcher CPS Tube Ripper Large Botcube [Rating: 144] Favorites ----------- Power Subdweller Power Source Engine Subdweller Power Source Power Core Micro Fission Core Reactor Fusion Reactor Propulsion Compact Wheel Treads Light Treads Leg Myomer Leg Wheel Compact Wheel Utility Humpback Device IFF Parser Storage Humpback Processor Advanced Signal Interpreter Hackware Advanced Hacking Suite Protection Enhanced Scrap Shield Weapon Subdweller Beam Cannon Energy Gun Subdweller Laser Energy Cannon Subdweller Beam Cannon Ballistic Gun Battle Rifle Ballistic Cannon Bore Cannon Launcher Proton Missile Launcher Special Weapon CPS Tube Impact Weapon Makeshift Hammer Slashing Weapon Ripper Piercing Weapon Lance Special Melee Weapon Improved Datajack Build | -11 -10 -10 -7 -7 -5 -5 -5 -5 -4 -4 -4 -4 -3 ------- Run | Yrd Mat Sub Rec Scr Fac Upp Upp Zhi Pro Fac Upp Upp Res Slots Evolved 14 | . . . . . 10 . . . . 2 . . 2 Power 2 | . . . . . 1 . . . . . . . 1 Propulsion 3 | . . . . . 3 . . . . . . . . Utility 8 | . . . . . 5 . . . . 2 . . 1 Weapon 1 | . . . . . 1 . . . . . . . . Parts Attached 115 | 1 6 26 4 15 20 5 4 3 7 15 2 2 5 Power 16 | . 1 6 1 1 3 . . 1 . 1 . . 2 Engine 10 | . 1 6 1 1 1 . . . . . . . . Core 3 | . . . . . 2 . . . . 1 . . . Reactor 3 | . . . . . . . . 1 . . . . 2 Propulsion 20 | . 2 3 3 5 3 . . . 1 1 1 . 1 Treads 4 | . 2 2 . . . . . . . . . . . Leg 11 | . . . . 4 3 . . . 1 1 1 . 1 Wheel 5 | . . 1 3 1 . . . . . . . . . Hover . | . . . . . . . . . . . . . . Flight . | . . . . . . . . . . . . . . Utility 42 | . 2 3 . 3 10 3 4 2 3 10 . 1 1 Device 21 | . 1 1 . 1 5 2 3 . 3 3 . 1 1 Storage 9 | . 1 2 . 2 . . 1 1 . 2 . . . Processor 2 | . . . . . . . . . . 2 . . . Hackware 6 | . . . . . 3 . . . . 3 . . . Protection 4 | . . . . . 2 1 . 1 . . . . . Artifact . | . . . . . . . . . . . . . . Weapon 37 | 1 1 14 . 6 4 2 . . 3 3 1 1 1 Energy Gun 4 | . 1 3 . . . . . . . . . . . Energy Cannon 12 | . . 6 . . 1 1 . . 1 1 1 . 1 Ballistic Gun 4 | 1 . . . 2 . . . . 1 . . . . Ballistic Cannon 5 | . . 3 . 1 . . . . . 1 . . . Launcher 1 | . . . . . . 1 . . . . . . . Special Weapon 2 | . . . . 1 1 . . . . . . . . Impact Weapon 2 | . . 1 . 1 . . . . . . . . . Slashing Weapon 4 | . . 1 . . . . . . 1 1 . 1 . Piercing Weapon 2 | . . . . 1 1 . . . . . . . . Special Melee Weapon 1 | . . . . . 1 . . . . . . . . Unidentified Prototypes 10 | . . . . . 1 1 . 4 . 3 1 . . Parts Lost 15 | . . 3 . . 1 . . . 4 . 1 . 6 Power 1 | . . . . . 1 . . . . . . . . Propulsion 3 | . . 3 . . . . . . . . . . . Utility 10 | . . . . . . . . . 3 . 1 . 6 Weapon 1 | . . . . . . . . . 1 . . . . Highest Loss Streak 6 | . . 2 . . 1 . . . 2 . 1 . 6 To Critical Strikes . | . . . . . . . . . . . . . . Average Backups 23 | 6 9 24 31 21 22 21 22 21 21 21 21 21 18 Power 1 | 1 1 1 1 . . 1 1 1 1 1 1 1 . Propulsion 4 | 4 4 5 8 4 1 2 1 1 1 1 . . . Utility 11 | . . 8 14 13 15 15 16 15 15 14 15 14 12 Weapon 5 | 1 3 7 7 3 1 1 1 1 1 1 1 2 2 Tool/Special . | . . . . . . . . . . . . . . Unused Backups 97 | . 5 15 11 28 19 2 . 1 1 2 3 1 9 Power 12 | . 1 1 1 5 2 . . . . . 1 . 1 Propulsion 15 | . 1 5 4 4 1 . . . . . . . . Utility 46 | . 3 2 3 14 13 1 . . 1 1 2 1 5 Weapon 19 | . . 7 2 5 3 1 . . . 1 . . . Tool/Special 5 | . . . 1 . . . . 1 . . . . 3 Average Slot Usage (%) 85 | . 96 86 85 76 90 88 88 81 89 88 89 90 88 Engine 10 | . 14 14 14 14 9 . . . . . . . . Core 1 | . . . . . 1 11 11 8 5 5 5 5 4 Treads 8 | . 26 14 8 . . . . . . . . . . Leg 10 | . 1 . . 18 28 29 29 29 29 26 29 30 27 Wheel 8 | . . 13 19 6 . . . . . . . . . Device 4 | . 10 1 . . 9 13 16 16 21 13 9 10 12 Storage 11 | . 14 14 14 13 5 5 5 5 5 5 5 5 3 Hackware 1 | . . . . . 10 2 . . . 6 10 10 9 Protection 1 | . . . . . 5 5 5 5 2 5 5 5 4 Energy Gun 1 | . 14 1 14 . . . . . . . . . . Energy Cannon 10 | . . 16 14 . 2 4 5 . 1 . 5 5 4 Ballistic Gun 3 | . 14 . . 17 . . . . 3 1 . . . Impact Weapon 5 | . . 8 . 1 5 5 5 5 1 . . . . Piercing Weapon 1 | . . . . . 4 5 5 5 5 5 5 5 4 Peak Build Rating 144 | 6 10 19 22 37 86 92 96 89 96 115 123 125 144 Average Rating 38 | 6 9 18 20 30 74 87 87 81 87 103 117 123 137 On Entrance 64 | 6 6 10 19 21 36 86 86 87 89 91 115 123 125 Avg Prop Armor Cover (%) 12 | . . 11 13 . . . . . . . . . . Naked Turns . | . . . . . . . . . . . . . . Heaviest Build 221 | 13 28 221 217 217 90 86 96 90 90 96 96 95 116 Greatest Support 144 | 20 40 40 32 50 102 98 98 98 98 111 136 136 144 Greatest Overweight (x) 13 | . . 13 13 6 . . . . . . . . . Average Overweight (x) 4 | . . 10 9 . . . . . . . . . . Largest Inventory Capacity 35 | 8 15 35 35 35 25 25 25 25 25 25 25 25 25 Average Capacity 29 | 8 14 32 35 25 25 25 25 25 25 25 25 25 22 Most Carried 35 | 6 15 33 35 35 25 25 25 25 25 25 25 25 25 Average Carried 26 | 6 9 27 34 23 24 24 24 24 24 24 24 24 22 Final Capacity 35 | 8 15 35 35 25 25 25 25 25 25 25 25 25 5 Final Carried 35 | 6 15 31 35 25 25 25 25 25 25 25 25 25 4 Class Distribution -------------------- 47% | Hauler-Mutant 23% | Mutant 17% | Derelict-Mutant 4% | Derelict-Gladiator 4% | Hacker-Assassin Dominant Class ---------------- Mutant | -10/Materials Hauler-Mutant | -10/Subcaves Hauler-Mutant | -7/Recycling Mutant | -7/Scraptown Derelict-Mutant | -5/Factory Derelict-Mutant | -5/Upper Caves Derelict-Mutant | -5/Upper Caves Derelict-Mutant | -5/Zhirov Derelict-Gladiator | -4/Proximity Caves Derelict-Gladiator | -4/Factory Hacker-Assassin | -4/Upper Caves Hacker-Assassin | -4/Upper Caves Hacker-Assassin | -3/Research Resources | -11 -10 -10 -7 -7 -5 -5 -5 -5 -4 -4 -4 -4 -3 ----------- Run | Yrd Mat Sub Rec Scr Fac Upp Upp Zhi Pro Fac Upp Upp Res Matter Collected 3725 | 199 228 708 60 390 606 223 168 83 366 411 223 20 40 Remotely . | . . . . . . . . . . . . . . Salvage Created 4802 | 75 208 1114 397 . 944 221 447 311 634 205 . . 246 Parts 216 | 6 13 70 15 . 28 15 21 2 23 12 . . 11 Haulers Intercepted 1 | . . . . . 1 . . . . . . . . Recyclers Shooed 4 | 1 2 . . . . . . . . . . . 1 Parts Field Recycled . | . . . . . . . . . . . . . . Retrieved Matter . | . . . . . . . . . . . . . . Parts Self-Destructed 52 | . . 20 . . . 21 4 . 7 . . . . Prevented 20 | . . . . . . 3 . . 9 . 8 . . Parts Restored . | . . . . . . . . . . . . . . Kills | -11 -10 -10 -7 -7 -5 -5 -5 -5 -4 -4 -4 -4 -3 ------- Run | Yrd Mat Sub Rec Scr Fac Upp Upp Zhi Pro Fac Upp Upp Res Combat Hostiles Destroyed 57 | . 2 28 1 . 7 4 3 . 11 . . . 1 Melee 10 | . . . . . 4 . 3 . 3 . . . . Guns 5 | . 2 2 . . . . . . 1 . . . . Cannons 29 | . . 25 1 . 2 . . . . . . . 1 AOE 9 | . . . . . . 4 . . 5 . . . . Classes Destroyed 18 | 2 1 5 . . 7 2 . . . 1 . . . Worker 1 | . . . . . . . . . . 1 . . . Builder 6 | . . . . . 3 . . . . 2 . . 1 Tunneler 1 | 1 . . . . . . . . . . . . . Hauler 1 | . . . . . 1 . . . . . . . . Recycler 11 | 1 2 . 3 . 3 . . . . 1 . . 1 Minesweeper 1 | . . . . . . 1 . . . . . . . Operator 2 | . . . . . 1 . . . . . . . 1 Turret 2 | . . 2 . . . . . . . . . . . Watcher 1 | . . . . . 1 . . . . . . . . Swarmer 15 | . . 5 . . 1 4 . . 5 . . . . Grunt 11 | . 2 3 . . 1 . . . 5 . . . . Duelist 1 | . . . . . 1 . . . . . . . . Sentry 4 | . . 1 1 . . . 1 . 1 . . . . Hunter 3 | . . . . . 2 . . . . . . . 1 Programmer 4 | . . . . . 2 . 2 . . . . . . Artisan 1 | . . 1 . . . . . . . . . . . Subdweller 19 | . . 19 . . . . . . . . . . . Samaritan 9 | . . . . . . 2 7 . . . . . . Best Kill Streak 4 | 2 4 2 3 . 4 4 1 . 4 1 . . 2 Combat Bots Only 4 | . 1 2 1 . 3 4 1 . 4 . . . 1 Max Kills in Single Turn 2 | 1 1 1 1 . 1 1 1 . 2 1 . . 1 Gunslinging . | . . . . . . . . . . . . . . Exploded 2 | . . . . . . 1 . . 2 . . . . Melee 1 | . . . . . 1 . 1 . 1 . . . . Uniques/NPCs Destroyed . | . . . . . . . . . . . . . . Combat | -11 -10 -10 -7 -7 -5 -5 -5 -5 -4 -4 -4 -4 -3 -------- Run | Yrd Mat Sub Rec Scr Fac Upp Upp Zhi Pro Fac Upp Upp Res Hostile Shots Fired 499 | . 8 116 18 . 97 16 46 . 84 4 12 . 98 Missed 171 | . . 37 3 . 28 9 20 . 31 3 4 . 36 Hits 328 | . 8 79 15 . 69 7 26 . 53 1 8 . 62 Projectile 328 | . 8 79 15 . 69 7 26 . 53 1 8 . 62 AOE 2 | . . 1 . . 1 . . . . . . . . Critical Strikes 18 | . 1 4 . . 2 . 3 . 3 . . . 5 Part Disruptions 1 | . . . . . . . . . . . . . 1 Damage Taken 5409 | . 143 1275 114 . 1099 131 367 . 993 . 170 . 1117 Core 521 | . . 210 11 . 83 . 12 . 92 . . . 113 Absorbed by Shields 841 | . . . . . 307 . 199 . 133 . . . 202 Regen/Repaired (Parts) 173 | . . . . . 173 . . . . . . . . Core Remaining (%) 73 | 100 . . . 11 . . . . 81 . . 100 . Volleys Fired 276 | 5 13 158 15 2 14 11 3 . 25 . 17 . 13 Largest 2 | 2 2 2 2 1 1 1 1 . 1 . 1 . 1 Hottest 160 | 60 60 160 140 . 90 90 90 . 90 . 113 . 113 Shots Fired 408 | 10 26 266 20 2 14 11 3 . 26 . 17 . 13 Gun 84 | 10 26 22 10 . . . . . 16 . . . . Cannon 308 | . . 244 10 . 13 7 3 . 1 . 17 . 13 Launcher 13 | . . . . . . 4 . . 9 . . . . Special 3 | . . . . 2 1 . . . . . . . . Kinetic 87 | 5 13 51 . . 2 . . . 16 . . . . Thermal 290 | . 13 215 20 . 11 7 3 . 1 . 17 . 3 Explosive . | . . . . . . . . . . . . . . Electromagnetic 28 | 5 . . . . . 4 . . 9 . . . 10 Robot Hit Streak 27 | 2 5 27 7 1 1 2 . . 4 . . . 5 Robot Miss Streak 4 | 3 2 4 1 1 3 1 . . 2 . . . 2 Penetration Max 1 | . . . . . 1 . . . . . . . . Secondary Targets . | . . . . . . . . . . . . . . Shots Hit Robots 255 | 4 17 99 11 1 39 5 30 7 22 4 . . 16 Core Hits 115 | 3 11 37 7 . 9 7 9 4 19 3 . . 6 Critical Kills 2 | . . 1 . . 1 . . . . . . . . Critical Parts Destroyed 4 | . . . . . 3 . 1 . . . . . . Critical Strikes 20 | 1 . 2 . . 7 . 5 . 4 1 . . . Meltdown 1 | . . 1 . . . . . . . . . . . Destroy 1 | . . . . . 1 . . . . . . . . Blast 1 | . . 1 . . . . . . . . . . . Corrupt 1 | 1 . . . . . . . . . . . . . Smash 4 | . . . . . 3 . 1 . . . . . . Impale 12 | . . . . . 3 . 4 . 4 1 . . . Melee Attacks 257 | . . 93 . . 63 5 42 8 23 11 . . 12 Impact 122 | . . 82 . . 27 1 8 1 3 . . . . Slashing 20 | . . 11 . . . . . . . 2 . . 7 Piercing 114 | . . . . . 35 4 34 7 20 9 . . 5 Sneak Attacks 32 | . . 1 . . 9 4 11 . . 4 . . 3 Combat Hostiles . | . . . . . . . . . . . . . . Follow-up Attacks 17 | . . . . . 7 . 4 . 3 . . . 3 Damage Inflicted 9398 | 76 163 2218 264 . 1922 475 1485 492 1207 353 . . 743 Guns 673 | 55 163 288 128 . . . . . 39 . . . . Cannons 2512 | . . 1884 136 . 155 36 . . 33 . . . 268 Explosions 805 | 21 . . . . . 195 . . 589 . . . . Melee 5382 | . . 46 . . 1767 244 1485 492 546 327 . . 475 Ramming 26 | . . . . . . . . . . 26 . . . Kinetic 620 | . 67 463 . . 51 . . . 39 . . . . Thermal 2326 | 21 96 1709 264 . 104 99 . . 33 . . . . Explosive . | . . . . . . . . . . . . . . Electromagnetic 1044 | 55 . . . . . 132 . . 589 . . . 268 Impact 1098 | . . . . . 892 . 112 . 94 . . . . Slashing 288 | . . 46 . . . . . . . . . . 242 Piercing 3996 | . . . . . 875 244 1373 492 452 327 . . 233 Highest Corruption 12 | . . . . . 6 6 10 10 12 . . . 6 Average Corruption 7 | . . . . . 3 6 8 10 10 . . . 3 Corruption Purged . | . . . . . . . . . . . . . . Corruption Blocked . | . . . . . . . . . . . . . . Effects 118 | . . . . . 9 25 28 7 47 . . . 2 Message Errors 32 | . . . . . . 8 7 1 14 . . . 2 Matter Fused 30 | . . . . . 3 9 6 2 10 . . . . Heat Flow Errors 16 | . . . . . 3 1 6 . 6 . . . . Energy Discharges 9 | . . . . . 1 2 . 1 5 . . . . Parts Fused 3 | . . . . . . 1 1 . 1 . . . . Data Loss (minor) 18 | . . . . . 1 3 6 2 6 . . . . Data Loss (major) 4 | . . . . . 1 1 1 . 1 . . . . Misfires 2 | . . . . . . . . . 2 . . . . Alerts 3 | . . . . . . . 1 1 1 . . . . Weapon Failures 1 | . . . . . . . . . 1 . . . . Overload Shots . | . . . . . . . . . . . . . . Overflow Damage 1561 | . . 11 . . 720 87 389 133 26 120 . . 75 Projectiles 23 | . . 11 . . . 8 . . 4 . . . . Explosions 21 | . . . . . . 21 . . . . . . . Melee 1517 | . . . . . 720 58 389 133 22 120 . . 75 Knockbacks 5 | . . 3 . . 2 . . . . . . . . Impact 2 | . . . . . 2 . . . . . . . . Kinetic 3 | . . 3 . . . . . . . . . . . Secondary . | . . . . . . . . . . . . . . Self-Inflicted Damage 78 | . . . . . . 1 . . 77 . . . . Shots 5 | . . . . . . 1 . . 4 . . . . Rammed . | . . . . . . . . . . . . . . Targets Rammed 2 | . . . . . . . . . . 2 . . . Kicked 2 | . . . . . . . . . . 2 . . . Crushed . | . . . . . . . . . . . . . . Highest Temperature 390 | 40 94 390 207 . 237 341 258 . 271 . 180 . 364 Average Temperature 68 | 22 45 48 60 . 56 117 74 . 91 . 58 . 129 Received Heat Transfer 1303 | . 81 862 30 . 39 . 61 . 191 . . . 39 Effects 5 | . . 2 . . . 1 . . 1 . . . 1 Shutdowns 1 | . . . . . . 1 . . . . . . . Energy Bleed 2 | . . 1 . . . . . . . . . . 1 Interference 1 | . . . . . . . . . 1 . . . . Matter Decay 1 | . . 1 . . . . . . . . . . . Siege Activations . | . . . . . . . . . . . . . . Martial Activations . | . . . . . . . . . . . . . . Shielding Activations . | . . . . . . . . . . . . . . Robots Disrupted . | . . . . . . . . . . . . . . Combat Hostiles . | . . . . . . . . . . . . . . Robots Corrupted 5 | . . . . . 3 . . . 2 . . . . Combat Hostiles 3 | . . . . . 1 . . . 2 . . . . Parts Fried 19 | . . . . . 10 1 . . 5 . . . 3 Impact Corruptions 14 | . . . . . 12 . 2 . . . . . . Robots Melted 1 | . . 1 . . . . . . . . . . . Combat Hostiles 1 | . . 1 . . . . . . . . . . . Parts Melted 6 | . . 5 . . . . . . 1 . . . . Heat Transferred 3169 | 50 225 2274 335 . 111 137 . . 37 . . . . Parts Sabotaged . | . . . . . . . . . . . . . . Parts Stolen . | . . . . . . . . . . . . . . Parts Stripped . | . . . . . . . . . . . . . . Power Chain Reactions 2 | 1 . . . . . 1 . . . . . . . Alert | -11 -10 -10 -7 -7 -5 -5 -5 -5 -4 -4 -4 -4 -3 ------- Run | Yrd Mat Sub Rec Scr Fac Upp Upp Zhi Pro Fac Upp Upp Res Maximum Alert Level 3 | . . . . . 1 . . . . 3 . . . Low Security (%) 73 | 100 100 . 100 . 70 . . . . . . . 100 Level 1 10 | . . . . . 29 . . . . . . . . Level 2 7 | . . . . . . . . . . 43 . . . Level 3 8 | . . . . . . . . . . 56 . . . Level 4 . | . . . . . . . . . . . . . . Level 5 . | . . . . . . . . . . . . . . High Security . | . . . . . . . . . . . . . . Max Security . | . . . . . . . . . . . . . . Peak Influence 946 | 10 75 . 21 . 324 . . . . 946 . . 30 Initial 946 | . 6 . . . . . . . . 946 . . . Average 165 | 5 18 . . . 126 . . . . 735 . . 4 Influence Increases 2712 | 10 105 290 64 . 686 125 70 10 255 997 22 . 78 Destroy 0b10 Robot/C 1080 | . 40 220 20 . 400 80 60 . 220 . 20 . 20 Destroy 0b10 Robot/NC 140 | 10 10 . 25 . 45 5 . 10 . 20 . . 15 Destroy Leader 134 | . 10 10 . . 64 10 10 . 20 . . . 10 Allied During Kill 48 | . . . . . 46 . . . . . 2 . . Successful Hack 82 | . . . . . 59 . . . . 11 . . 12 Disable Machine 75 | . . . 15 . 15 . . . . 30 . . 15 Destroy Structure 58 | . . . 4 . 42 . . . . 6 . . 6 Advance Influence 900 | . . . . . . . . . . 900 . . . Partial Spotted 15 | . . . . . 15 . . . . . . . . Lose Combat Pursuer 180 | . 45 60 . . . 30 . . 15 30 . . . Influence Decreases 2712 | . 115 290 64 . 396 397 88 10 181 546 547 . 78 Entered New Map 339 | . 4 . . . . 108 4 . . 28 195 . . Time Decay 2091 | . 111 288 64 . 366 289 84 10 151 318 352 . 58 Search Patrol Dispatched 200 | . . . . . . . . . . 200 . . . Lost Part 62 | . . 2 . . 10 . . . 30 . . . 20 Lost Ally 20 | . . . . . 20 . . . . . . . . Squads Dispatched 15 | . . . . . 7 . . . . 6 . . 2 Investigation 7 | . . . . . 2 . . . . 4 . . 1 Extermination 6 | . . . . . 4 . . . . 1 . . 1 Reinforcement 2 | . . . . . 1 . . . . 1 . . . Assault . | . . . . . . . . . . . . . . Garrison . | . . . . . . . . . . . . . . Intercept . | . . . . . . . . . . . . . . Searches Triggered 2 | . . . . . . . . . . 2 . . . Construction Impeded 1 | . . . . . 1 . . . . . . . . Haulers Reinforced . | . . . . . . . . . . . . . . Active Scanning Responses . | . . . . . . . . . . . . . . Cargo Convoy Interrupts . | . . . . . . . . . . . . . . Stealth | -11 -10 -10 -7 -7 -5 -5 -5 -5 -4 -4 -4 -4 -3 --------- Run | Yrd Mat Sub Rec Scr Fac Upp Upp Zhi Pro Fac Upp Upp Res Distress Signals 5 | . 2 . . . . . . . 3 . . . . Communications Jammed . | . . . . . . . . . . . . . . Distress Signals . | . . . . . . . . . . . . . . Times Spotted 113 | . 7 33 1 . 27 9 4 . 19 5 2 . 6 Peak Tracking Total 7 | . 3 2 1 . 7 4 2 . 5 2 2 . 4 Tactical Retreats 7 | . 2 2 . . . 1 . . 1 1 . . . Traps | -11 -10 -10 -7 -7 -5 -5 -5 -5 -4 -4 -4 -4 -3 ------- Run | Yrd Mat Sub Rec Scr Fac Upp Upp Zhi Pro Fac Upp Upp Res Traps Triggered 3 | . 1 . . . 2 . . . . . . . . Indirectly . | . . . . . . . . . . . . . . Trap Hack Attempts . | . . . . . . . . . . . . . . Triggered . | . . . . . . . . . . . . . . Disarmed 3 | . 3 . . . . . . . . . . . . Reprogrammed . | . . . . . . . . . . . . . . Reused . | . . . . . . . . . . . . . . Traps Extracted . | . . . . . . . . . . . . . . Installed . | . . . . . . . . . . . . . . Triggered . | . . . . . . . . . . . . . . Most Traps Carried 3 | . . 2 2 3 3 3 3 . . . . . . Machines | -11 -10 -10 -7 -7 -5 -5 -5 -5 -4 -4 -4 -4 -3 ---------- Run | Yrd Mat Sub Rec Scr Fac Upp Upp Zhi Pro Fac Upp Upp Res Machines Disabled 9 | . . 2 1 . 1 . 1 . . 2 1 . 1 Max in Single Turn 1 | . . 1 1 . 1 . 1 . . 1 1 . 1 Machines Repaired . | . . . . . . . . . . . . . . Machines Dismantled . | . . . . . . . . . . . . . . Machines Sabotaged . | . . . . . . . . . . . . . . Overloaded Fab Kills . | . . . . . . . . . . . . . . Hacking | -11 -10 -10 -7 -7 -5 -5 -5 -5 -4 -4 -4 -4 -3 --------- Run | Yrd Mat Sub Rec Scr Fac Upp Upp Zhi Pro Fac Upp Upp Res Machines Accessed 50 | . 3 . 11 2 15 1 3 5 . 7 1 . 2 Terminals 19 | . 2 . 4 . 8 . 1 . . 3 . . 1 Fabricators 2 | . . . . . 1 . . . . 1 . . . Repair Stations 2 | . . . . . 2 . . . . . . . . Recycling Units 14 | . 1 . 7 . 2 . . . . 3 . . 1 Scanalyzers 2 | . . . . . 2 . . . . . . . . Garrison Access . | . . . . . . . . . . . . . . Total Hacks 142 | . 3 . 18 4 58 1 3 18 . 26 6 . 5 Successful 91 | . 3 . 6 4 36 1 3 18 . 12 6 . 2 Failed 51 | . . . 12 . 22 . . . . 14 . . 3 Catastrophic 7 | . . . 2 . 2 . . . . 3 . . . Database Lockouts . | . . . . . . . . . . . . . . Manual 44 | . . . . . 22 . . . . 17 . . 5 Terminals 55 | . 2 . 8 . 30 . 1 . . 12 . . 2 Fabricators 8 | . . . . . 3 . . . . 5 . . . Repair Stations 9 | . . . . . 9 . . . . . . . . Recycling Units 33 | . 1 . 10 . 10 . . . . 9 . . 3 Scanalyzers 6 | . . . . . 6 . . . . . . . . Garrison Access . | . . . . . . . . . . . . . . Terminal Hacks 43 | . 2 . . 4 7 1 3 18 . 2 6 . . Record 14 | . . . . . . . 2 6 . . 6 . . Part Schematic 4 | . . . . . . . . 4 . . . . . Robot Analysis 7 | . . . . 3 . . . 4 . . . . . Prototype ID Bank 4 | . . . . . . . . 4 . . . . . Open Door 2 | . . . . . . 1 1 . . . . . . Branch Access Points 2 | . . . . . 1 . . . . 1 . . . Terminal Index 1 | . . . . . . . . . . 1 . . . Locate Traps 3 | . 1 . . . 2 . . . . . . . . Disarm Traps 1 | . 1 . . . . . . . . . . . . Maintenance Status 1 | . . . . . 1 . . . . . . . . Patrol Status 1 | . . . . . 1 . . . . . . . . Recall Extermination 1 | . . . . . 1 . . . . . . . . Hauler Manifests 1 | . . . . . 1 . . . . . . . . Proto ID Catalog 1 | . . . . 1 . . . . . . . . . Fabricator Hacks 3 | . . . . . 2 . . . . 1 . . . Network Status 2 | . . . . . 1 . . . . 1 . . . Build 1 | . . . . . 1 . . . . . . . . Repair Station Hacks 7 | . . . . . 7 . . . . . . . . Scan Component 4 | . . . . . 4 . . . . . . . . Repair 3 | . . . . . 3 . . . . . . . . Recycling Unit Hacks 12 | . 1 . 6 . 2 . . . . 3 . . . Retrieve Components 12 | . 1 . 6 . 2 . . . . 3 . . . Scanalyzer 2 | . . . . . 2 . . . . . . . . Insert Component 1 | . . . . . 1 . . . . . . . . Retrieve Study 1 | . . . . . 1 . . . . . . . . Garrison Access Hacks . | . . . . . . . . . . . . . . Unauthorized Hacks 24 | . . . . . 16 . . . . 6 . . 2 Terminals 12 | . . . . . 9 . . . . 2 . . 1 Botnet 6 | . . . . . 4 . . . . 1 . . 1 Operators 2 | . . . . . 1 . . . . 1 . . . Skim 4 | . . . . . 4 . . . . . . . . Fabricators 1 | . . . . . . . . . . 1 . . . Haulers 1 | . . . . . . . . . . 1 . . . Repair Stations . | . . . . . . . . . . . . . . Recycling Units 11 | . . . . . 7 . . . . 3 . . 1 Monitor 1 | . . . . . 1 . . . . . . . . Reject 2 | . . . . . 2 . . . . . . . . Recyclers 1 | . . . . . 1 . . . . . . . . Mask 1 | . . . . . 1 . . . . . . . . Fedlink 6 | . . . . . 2 . . . . 3 . . 1 Scanalyzers . | . . . . . . . . . . . . . . Garrison Access . | . . . . . . . . . . . . . . Data Cores Recovered . | . . . . . . . . . . . . . . Used . | . . . . . . . . . . . . . . Hacking Detections 27 | . 1 . 7 . 11 . . . . 7 . . 1 Full Trace Events 2 | . . . 1 . . . . . . 1 . . . Feedback Events . | . . . . . . . . . . . . . . Feedback Blocked . | . . . . . . . . . . . . . . Robot Schematics Acquired . | . . . . . . . . . . . . . . Robots Built . | . . . . . . . . . . . . . . Authchips . | . . . . . . . . . . . . . . Time . | . . . . . . . . . . . . . . Total Robot Build Rating . | . . . . . . . . . . . . . . Part Schematics Acquired 4 | . . . . . . . . 4 . . . . . Parts Built 2 | . . . . . 2 . . . . . . . . Authchips . | . . . . . . . . . . . . . . Time 58 | . . . . . 58 . . . . . . . . Total Part Build Rating 14 | . . . . . 14 . . . . . . . . Part Studies Acquired 1 | . . . . . 1 . . . . . . . . Parts Repaired 3 | . . . . . 3 . . . . . . . . Time 144 | . . . . . 144 . . . . . . . . Parts Recycled . | . . . . . . . . . . . . . . Recycled Matter . | . . . . . . . . . . . . . . Retrieved Matter . | . . . . . . . . . . . . . . Retrieved Components 30 | . 1 . 14 . 10 . . . . 5 . . . Parts Scanalyzed 1 | . . . . . 1 . . . . . . . . Part Schematics Acquired . | . . . . . . . . . . . . . . Parts Damaged . | . . . . . . . . . . . . . . Bothacking | -11 -10 -10 -7 -7 -5 -5 -5 -5 -4 -4 -4 -4 -3 ------------ Run | Yrd Mat Sub Rec Scr Fac Upp Upp Zhi Pro Fac Upp Upp Res Used RIF Installer . | . . . . . . . . . . . . . . Robots Hacked 1 | . . . . . 1 . . . . . . . . Non-combat 1 | . . . . . 1 . . . . . . . . Combat . | . . . . . . . . . . . . . . Robot Hacks Applied 1 | . . . . . 1 . . . . . . . . find_chute 1 | . . . . . 1 . . . . . . . . Relay Couplers Released . | . . . . . . . . . . . . . . Fabnet Peak Effective % . | . . . . . . . . . . . . . . Robots Rewired . | . . . . . . . . . . . . . . Allies Hacked . | . . . . . . . . . . . . . . Hacks Repelled . | . . . . . . . . . . . . . . Allies | -11 -10 -10 -7 -7 -5 -5 -5 -5 -4 -4 -4 -4 -3 -------- Run | Yrd Mat Sub Rec Scr Fac Upp Upp Zhi Pro Fac Upp Upp Res Total Allies 3 | . . . . 1 . . . . . . 2 . . Largest Group 2 | . . . . 1 1 . . . . . 2 1 . Highest-Rated Group 89 | . . . . 89 89 . . . . . 76 38 . Highest-Rated Ally 89 | . . . . 89 89 . . . . . 38 38 . Initial UFD Resources 75 | . . . . . 37 51 51 51 55 55 71 71 75 Total Orders . | . . . . . . . . . . . . . . Ally Attacks 39 | . . . . . 35 . . . . . 4 . . Total Damage 1488 | . . . . . 1287 . . . . . 201 . . Kills 14 | . . . . . 13 . . . . . 1 . . Allies Corrupted . | . . . . . . . . . . . . . . Allies Melted 1 | . . . . . . 1 . . . . . . . Intel | -11 -10 -10 -7 -7 -5 -5 -5 -5 -4 -4 -4 -4 -3 ------- Run | Yrd Mat Sub Rec Scr Fac Upp Upp Zhi Pro Fac Upp Upp Res Active Infowar (turns) 6592 | . . . . . 1284 1041 770 288 1083 664 1015 170 277 Sensors 2006 | . . . . . . . . . . 547 1012 170 277 IFF 2932 | . . . . . 108 1041 743 285 755 . . . . Terrain 4286 | . . . . . 1284 482 747 288 927 112 . 170 276 Structural 1126 | . . . . . . . . . . 302 824 . . Seismic 2808 | . . . . . . 1013 770 259 766 . . . . Robot Analysis Total 7 | . . . . 3 . . . 4 . . . . . Derelict Logs Recovered 10 | . . 2 . 5 . . 1 . 1 . 1 . . Drone Launches . | . . . . . . . . . . . . . . Drone Recoveries . | . . . . . . . . . . . . . . Exploration | -11 -10 -10 -7 -7 -5 -5 -5 -5 -4 -4 -4 -4 -3 ------------- Run | Yrd Mat Sub Rec Scr Fac Upp Upp Zhi Pro Fac Upp Upp Res Turns Passed 28567 | 16 449 14781 1357 4810 1599 1041 842 288 1171 714 1015 170 314 Spaces Moved 14289 | 1 223 5085 514 3677 1012 739 541 197 788 458 728 135 191 Core . | . . . . . . . . . . . . . . Treads 673 | . 217 456 . . . . . . . . . . . Legs 7205 | 1 6 . . 2409 1012 739 541 197 788 458 728 135 191 Wheels 6411 | . . 4629 514 1268 . . . . . . . . . Hover . | . . . . . . . . . . . . . . Flight . | . . . . . . . . . . . . . . Fastest Speed 100 | 120 120 100 190 115 125 126 126 126 126 124 123 123 120 Average Speed 178 | 120 158 260 245 126 127 126 126 126 126 124 123 123 122 Slowest Speed 295 | 120 160 295 295 190 128 126 126 126 126 126 124 123 123 Overloaded Moves . | . . . . . . . . . . . . . . Propulsion Burnouts . | . . . . . . . . . . . . . . Robots Hopped . | . . . . . . . . . . . . . . Potential Cave-ins 16 | . . 15 . . . . 1 . . . . . . Cave-ins Triggered . | . . . . . . . . . . . . . . Exploration Rate (%) 49 | 1 41 69 79 96 22 71 60 60 76 13 74 19 6 Regions Visited 13 Branch Regions 9 Pre-discovered Areas 7 | . . 1 . 2 1 . . 3 . . . . . Known Exits Taken 4 | . . . . . 1 . . . . 1 1 1 . Unknown Exits Taken 9 | 1 1 1 1 1 . 1 1 1 1 . . . . Scrap Searched 36 | . . 15 . 7 . 4 3 . 3 . 3 1 . Spaces Dug 208 | . . 136 3 . 17 13 6 . 13 3 16 . 1 Terrain Destroyed 232 | 2 . 150 4 . 21 14 6 . 13 3 16 . 3 Melee 78 | . . 52 . . 14 . 3 . 5 3 . . 1 Projectile 144 | . . 98 4 . 7 6 3 . 8 . 16 . 2 AOE 10 | 2 . . . . . 8 . . . . . . . Terrain Rammed . | . . . . . . . . . . . . . . Walls Destroyed . | . . . . . . . . . . . . . . Machines Disabled . | . . . . . . . . . . . . . . Actions | -11 -10 -10 -7 -7 -5 -5 -5 -5 -4 -4 -4 -4 -3 --------- Run | Yrd Mat Sub Rec Scr Fac Upp Upp Zhi Pro Fac Upp Upp Res Total 16664 | 6 294 6256 597 3875 1234 834 637 227 910 583 831 138 242 Wait 1213 | . 35 760 23 30 66 56 39 5 49 70 64 . 16 Move 14276 | . 222 5084 513 3676 1011 738 540 196 787 457 727 134 191 Hop . | . . . . . . . . . . . . . . Pick Up 262 | . 14 77 21 92 28 5 4 3 5 6 4 1 2 Fast Attach 46 | . . 6 . 2 7 4 . 7 3 11 5 . 1 Attach 38 | . 1 5 . 9 13 . . . 4 2 3 . 1 Detach 5 | . . . . 1 2 . . . . 1 1 . . Swap 115 | 1 5 32 6 5 16 4 13 . 12 11 2 2 6 Drop 201 | . 4 41 19 58 24 11 4 9 5 14 8 1 3 Fire 276 | 5 13 158 15 2 14 11 3 . 25 . 17 . 13 Melee 229 | . . 93 . . 53 4 34 7 20 9 . . 9 Ram . | . . . . . . . . . . . . . . Kick 2 | . . . . . . . . . . 2 . . . Crush . | . . . . . . . . . . . . . . Escape Stasis . | . . . . . . . . . . . . . . Rewire . | . . . . . . . . . . . . . . Trap . | . . . . . . . . . . . . . . Miscellaneous 1 | . . . . . . 1 . . . . . . . Route ------- -11/Scrapyard -10/Materials (discovered 3 exits: [*Mat] / [*Min] / [*Sub]) -10/Subcaves (discovered 3 exits: [*Mat x2] / *Rec) -7/Recycling (discovered 2 exits: *Fac / *Scr) -7/Scraptown (discovered 2 exits: *Fac x2) -5/Factory (discovered 2 exits: *Upp x2) -5/Upper Caves -5/Upper Caves -5/Zhirov -4/Proximity Caves -4/Factory (discovered 2 exits: *Upp x2) -4/Upper Caves -4/Upper Caves -3/Research (discovered 3 exits: [Res] / Qua x2) History --------- Turn | Location | Event 6 | -11/Scrapyard | Discovered new exit (range 2) 17 | -11/Scrapyard | Entered Materials 249 | -10/Materials | Discovered new exit (range 8) 311 | -10/Materials | Build established: Mutant 337 | -10/Materials | Discovered new exit (range 16) 454 | -10/Materials | Discovered new exit (range 4) 466 | -10/Materials | Entered Subcaves 467 | -10/Subcaves | Approached by a straggling Scientist 564 | -10/Subcaves | Learned location of Zion (-6) 689 | -10/Subcaves | Ambushed by angry Subdweller bent on revenge 801 | -10/Subcaves | A swath of the cavern ceiling suddenly collapsed 1005 | -10/Subcaves | Discovered new exit (range 16) 1654 | -10/Subcaves | Discovered new exit (range 10) 1703 | -10/Subcaves | Shifting Twisted Machinery released Lgt. Humpback 1740 | -10/Subcaves | Shifting Twisted Machinery released Mak. Power Source 1783 | -10/Subcaves | Shifting Twisted Machinery released Flamer 2542 | -10/Subcaves | Shifting Twisted Machinery released Riot Gun 2739 | -10/Subcaves | Discovered new exit (range 11) 3610 | -10/Subcaves | Build established: Hauler-Mutant 4112 | -10/Subcaves | Learned Materials security intel 4318 | -10/Subcaves | A swath of the cavern ceiling suddenly collapsed 4572 | -10/Subcaves | Ambushed by Subdweller buried in earth 4572 | -10/Subcaves | Ambushed by Subdweller buried in earth 4573 | -10/Subcaves | Core integrity fell below 50% 4614 | -10/Subcaves | Ambushed by Subdweller buried in earth 6902 | -10/Subcaves | Ambushed by Subdweller buried in earth 8540 | -10/Subcaves | Ambushed by Subdweller buried in earth 8546 | -10/Subcaves | Ambushed by Subdweller buried in earth 13145 | -10/Subcaves | Ambushed by Subdweller buried in earth 13647 | -10/Subcaves | Ambushed by Subdweller buried in earth 13649 | -10/Subcaves | Core integrity fell below 20% 15247 | -10/Subcaves | Entered Recycling 15248 | -7/Recycling | Met a Zionite searching for Scraptown 16206 | -7/Recycling | Discovered new exit (range 9) 16302 | -7/Recycling | Scanned before Scraplab entrance 16574 | -7/Recycling | Entered Scraplab 16600 | -7/Recycling | Discovered new exit (range 3) 16604 | -7/Recycling | Entered Scraptown 16882 | -7/Scraptown | Scanned Subdweller tech in exchange for log data 16888 | -7/Scraptown | Learned location of Extension (-6) 16889 | -7/Scraptown | Learned Factory terminal intel 16891 | -7/Scraptown | Learned Research security intel 16893 | -7/Scraptown | Learned Factory emergency access door positions 16983 | -7/Scraptown | Discovered new exit (range 5) 17096 | -7/Scraptown | Visited Symbiants 17126 | -7/Scraptown | Visited UFD Registry 17126 | -7/Scraptown | Registered with UFD as "Gammasys" 17164 | -7/Scraptown | Visited Junk Repository 17188 | -7/Scraptown | Visited Spacefarers 17248 | -7/Scraptown | Visited Fellowship of the Rings 17264 | -7/Scraptown | Visited Red Mages 17355 | -7/Scraptown | Build established: Derelict-Mutant 17727 | -7/Scraptown | Visited Science Guys 17775 | -7/Scraptown | Visited Science Testing Area 17793 | -7/Scraptown | Visited Analyses Database 17821 | -7/Scraptown | Visited LU-1G1's Boring Crew 17878 | -7/Scraptown | Delivered Scrap Shield to a Scientist 18022 | -7/Scraptown | Visited Derelict Rescue Squad 18029 | -7/Scraptown | Found DRS Beacon 18049 | -7/Scraptown | Visited Scrap Suit Storage 18065 | -7/Scraptown | Visited Botcube Research 18107 | -7/Scraptown | Discovered new exit (range 5) 18196 | -7/Scraptown | Visited DA-N13 Charitable Foundation 18207 | -7/Scraptown | Found DCF Scrap (28 items) 18277 | -7/Scraptown | Visited Chapter 10 18310 | -7/Scraptown | Visited Research Penetration Think Tank 18377 | -7/Scraptown | Visited Observation Area 18455 | -7/Scraptown | Visited Cave Peace 18535 | -7/Scraptown | Build established: Mutant 18691 | -7/Scraptown | Found Lrg. Botcube 20878 | -7/Scraptown | Lrg. Botcube activated 20910 | -7/Scraptown | Lrg. Botcube completed mutation into wheeled form, armed with 4 guns. 21014 | -7/Scraptown | Attached CPS modules to Large Mutated Botcube. 21348 | -7/Scraptown | Met Optimus 21348 | -7/Scraptown | Accepted into 0bPrime 21414 | -7/Scraptown | Entered Factory 21414 | -5/Factory | Accompanied by 1 ally 21414 | -5/Factory | Evolved 10 slots: Power x1, Propulsion x3, Utility x5, Weapon x1 21416 | -5/Factory | Loaded intel: 26 terminal locations 21733 | -5/Factory | Build established: Derelict-Mutant 21761 | -5/Factory | Identified exit to Upper Caves 21819 | -5/Factory | Found Powered Armor 21826 | -5/Factory | Found Powered Armor 21870 | -5/Factory | Loaded intel: 7 recycling unit locations 21972 | -5/Factory | Fabricated Adv. Power Amplifier (x2) 22112 | -5/Factory | Attached CPS modules to O-24 Administrator. 22282 | -5/Factory | Repaired Imp. Titanium Leg 22341 | -5/Factory | Repaired Adv. Shield Generator 22385 | -5/Factory | Repaired Imp. Titanium Leg 22564 | -5/Factory | Learned location of Protoforge (-3) 22716 | -5/Factory | Found Lrg. Botcube 23013 | -5/Factory | Entered Upper Caves 23015 | -5/Upper Caves | UFD Scientist delivered a prototype 23018 | -5/Upper Caves | Found Prototype Protection 23018 | -5/Upper Caves | Identified Enh. Scrap Shield 23025 | -5/Upper Caves | Activated DRS Beacon 23095 | -5/Upper Caves | Spotted B-75 Beast 23147 | -5/Upper Caves | Lost 3 allies 23624 | -5/Upper Caves | Discovered new exit (range 11) 24054 | -5/Upper Caves | Entered another Upper Caves area 24060 | -5/Upper Caves | Learned 4 Factory zone layouts 24332 | -5/Upper Caves | System corruption reached 10% 24738 | -5/Upper Caves | Attracted the attention of an 0b10 checkpoint 24809 | -5/Upper Caves | Discovered new exit (range 9) 24832 | -5/Upper Caves | Found Alien Artifact 24873 | -5/Upper Caves | Spotted B-75 Beast 24896 | -5/Upper Caves | Entered Zhirov 24897 | -5/Zhirov | Discovered new exit (range 3) 24920 | -5/Zhirov | Met Zhirov 24947 | -5/Zhirov | Learned location of Quarantine (-3) 24947 | -5/Zhirov | Learned location of Testing (-2) 24947 | -5/Zhirov | Learned location of Command (-1) 24956 | -5/Zhirov | Zhirov requested help retrieving the SGEMP Prototype 24988 | -5/Zhirov | Found Alien Artifact 24988 | -5/Zhirov | Identified Integrated Reactor 24988 | -5/Zhirov | Installed Integrated Reactor, increased core energy generation (+10) 25129 | -5/Zhirov | Found Alien Artifact 25184 | -5/Zhirov | Entered Proximity Caves 25293 | -4/Proximity Caves | Spotter reported a threat 25346 | -4/Proximity Caves | Spotter reported a threat 25388 | -4/Proximity Caves | Spotter reported a threat 25407 | -4/Proximity Caves | Attracted the attention of an 0b10 checkpoint 25742 | -4/Proximity Caves | Spotter reported a threat 25775 | -4/Proximity Caves | Spotted B-86 Titan 25851 | -4/Proximity Caves | Build established: Derelict-Gladiator 26019 | -4/Proximity Caves | Spotter reported a threat 26072 | -4/Proximity Caves | Spotter reported a threat 26125 | -4/Proximity Caves | Spotter reported a threat 26141 | -4/Proximity Caves | Spotter reported a threat 26179 | -4/Proximity Caves | Spotter reported a threat 26345 | -4/Proximity Caves | Discovered new exit (range 9) 26355 | -4/Proximity Caves | Entered Factory 26355 | -4/Factory | Evolved 2 slots: Utility x2 26605 | -4/Factory | Search patrols dispatched 26692 | -4/Factory | Loaded intel: 8 recycling unit locations 26814 | -4/Factory | Identified exit to Upper Caves 26855 | -4/Factory | Search patrols dispatched 27069 | -4/Factory | Entered Upper Caves 27230 | -4/Upper Caves | Learned Research stockpile data 27234 | -4/Upper Caves | Found Alien Artifact 27234 | -4/Upper Caves | Identified Core Expander 27234 | -4/Upper Caves | Installed Core Expander, added new Propulsion slot 27373 | -4/Upper Caves | Build established: Hacker-Assassin 27396 | -4/Upper Caves | Learned 8 Research zone layouts 27396 | -4/Upper Caves | Learned Factory trap positions 27396 | -4/Upper Caves | Learned Research stockpile data 27396 | -4/Upper Caves | Learned Extension security intel 27401 | -4/Upper Caves | Encountered a Warlord checkpoint 27939 | -4/Upper Caves | A Commander dispatched an escort 28039 | -4/Upper Caves | Discovered new exit (range 9) 28049 | -4/Upper Caves | Identified exit to Upper Caves 28084 | -4/Upper Caves | Entered another Upper Caves area 28084 | -4/Upper Caves | Accompanied by 1 ally 28085 | -4/Upper Caves | Commander's escort returned to base 28167 | -4/Upper Caves | Discovered new exit (range 15) 28203 | -4/Upper Caves | Identified exit to Research 28254 | -4/Upper Caves | Entered Research 28254 | -3/Research | Evolved 2 slots: Power x1, Utility x1 28255 | -3/Research | Identified exit to Quarantine 28367 | -3/Research | Discovered exit to Quarantine (range 12) 28497 | -3/Research | Loaded intel: 4 recycling unit locations 28511 | -3/Research | Discovered new exit (range 16) 28568 | -3/Research | Self-destructed Last Messages --------------- 28537_ H-77 Assassin destroyed. 28538_ Extracted 92 energy. 28540_ K-01 Serf collects debris. 28542_ Slug penetrates Wall. 28549_ H-77 Assassin misfires. 28549_ Penetrated by Slug. 28554_ Adv. Reaction Control System destroyed. 28554_ P-80 Master resets H-77 Assassin, system corruption cleaned. 28555_ Overheating: Energy bleed (-33). 28555_ Penetrated by Slug. 28558_ Slug penetrates Wall. 28559_ W/GLOUC6C:MIB2BC1UFQOPLVXGBL 28562_ Penetrated by Slug. 28562_ Critical hit (Destroy). 28562_ Slug penetrates Wall. 28562_ Penetrated by Slug. 28562_ Enh. Scrap Shield destroyed. 28565_ Slug penetrates Wall. 28565_ K-01 Serf collects debris. 28565_ Lance follow-up attack on H-77 Assassin. Map ----- +----------------------------------------------------+ | ???????????????????????????????????? | | ???????????????????????????????????? | | ???????????????????????????????????? | | ???????????????????????????????????? | | ???????????????????????????????????? | | ???????????????????????????????????? | | ???????????????????????????????????? | | ???????????????????????????????????? | | ???????????????????????????????????? | | ????????????????????